bitfinex-derivatives/quotes_SOLF0:USTF0_20250415
["timestamp","ask_amount","ask_price","bid_price","bid_amount"]
[1744728792785,29.60813395,130.97,130.9,0.4]
[1744728792986,0.05621522,130.94,130.92,0.05433107]
[1744728793382,0.05621522,130.94,130.92,7.69313107]
[1744728793782,15.2603,131.07,130.93,42.86]
[1744728793982,74.76753395,131.06,130.93,42.86]
[1744728794188,74.76753395,131.06,130.94,31.93853395]
[1744728794589,2.3332,131.05,130.94,31.93853395]
[1744728794886,0.05520721,131.01,130.98,0.04902189]
[1744728795087,0.05520721,131.01,130.98,7.68412189]
[1744728795384,0.05520721,131.01,130.98,0.04902189]
[1744728795590,0.05520721,131.01,130.99,7.6344]
[1744728795789,0.05520721,131.01,130.98,0.04902189]
[1744728796391,0.05520721,131.01,130.99,7.6344]
[1744728796585,0.05520721,131.01,130.98,0.04902189]
[1744728796790,3.1789658,131.0,130.98,0.04902189]
[1744728796990,7.6347,130.99,130.98,0.04902189]
[1744728797589,0.05520721,131.01,130.98,0.04902189]
[1744728797789,3.18242817,131.0,130.98,0.04902189]
[1744728798191,7.68900721,131.01,130.98,7.68402189]
[1744728798489,3.18230215,131.0,130.98,0.04902189]
[1744728798691,10.81670215,131.0,130.98,0.04902189]
[1744728798993,0.05520721,131.01,130.98,0.04902189]
[1744728799193,0.05520721,131.01,130.99,7.6342]
[1744728799393,0.05520721,131.01,130.98,0.04902189]
[1744728799793,0.05520721,131.01,131.0,7.6341]
[1744728799993,29.60813395,131.08,130.98,42.76902189]
[1744728800291,7.6309,131.06,130.99,2.2664]
[1744728800693,29.60813395,131.08,131.0,4.7274]
[1744728800896,29.60813395,131.06,131.01,7.6334]
[1744728801093,3.2438978,131.05,131.02,0.05461353]
[1744728801393,7.6321,131.04,131.02,0.05461353]
[1744728801590,0.05864236,131.05,131.02,0.05461353]
[1744728801992,7.69024236,131.05,131.02,0.05461353]
[1744728802190,0.05864236,131.05,131.02,0.05461353]
[1744728802591,7.6324,131.03,131.02,0.05461353]
[1744728802893,0.05864236,131.05,131.02,0.05461353]
[1744728803090,3.18229318,131.04,131.02,0.05461353]
[1744728803393,7.6324,131.03,131.02,0.05461353]
[1744728803896,0.05864236,131.05,131.03,7.6321]
[1744728804084,0.05864236,131.05,131.02,0.05461353]
[1744728804393,0.05864236,131.05,131.04,7.6318]
[1744728804784,0.05864236,131.05,131.02,0.05461353]
[1744728804985,0.05864236,131.05,131.03,7.6321]
[1744728805190,0.05864236,131.05,131.02,0.05461353]
[1744728805492,0.05864236,131.05,131.03,7.6322]
[1744728806194,7.69004236,131.05,131.02,7.68731353]
[1744728806394,0.05864236,131.05,131.02,0.05461353]
[1744728806690,7.6324,131.03,131.02,0.05461353]
[1744728806891,0.05864236,131.05,131.02,0.05461353]
[1744728807197,29.60813395,131.14,131.03,42.7]
[1744728807395,7.629,131.09,131.06,7.6302]
[1744728808196,7.67300498,131.09,131.06,7.68070413]
[1744728808588,7.6295,131.08,131.06,0.05050413]
[1744728809698,7.6295,131.08,131.06,7.68110413]
[1744728809997,7.67320498,131.09,131.06,7.68110413]
[1744728811000,0.04400498,131.09,131.07,7.63]
[1744728811491,0.04400498,131.09,131.07,7.6298]
[1744728811802,0.04400498,131.09,131.06,0.05050413]
[1744728812299,0.04400498,131.09,131.08,7.6295]
[1744728812703,0.04400498,131.09,131.06,0.05050413]
[1744728812900,0.04400498,131.09,131.07,7.6297]
[1744728813300,0.04400498,131.09,131.06,0.05050413]
[1744728813507,0.04400498,131.09,131.07,7.6301]
[1744728813908,0.04400498,131.09,131.08,7.6295]
[1744728816213,0.04400498,131.09,131.07,7.6298]
[1744728816513,0.04400498,131.09,131.06,0.05050413]
[1744728817822,29.65213893,131.09,131.06,0.05050413]
[1744728818017,7.6315,131.05,131.03,7.6324]
[1744728818216,72.28813395,131.09,131.03,7.6324]
[1744728818416,72.28813395,131.09,131.0,549.42]
[1744728818616,7.6303,131.07,131.0,549.42]
[1744728818914,0.05461854,131.05,131.02,0.04836278]
[1744728819316,0.05461854,131.05,131.04,7.6318]
[1744728819919,72.28813395,131.13,131.02,0.04836278]
[1744728820114,72.28813395,131.13,131.03,72.28813395]
[1744728820316,7.6286,131.1,131.04,4.927]
[1744728820820,0.03989057,131.08,131.06,0.0498443]
[1744728821320,0.03989057,131.08,131.07,7.6301]
[1744728821522,0.03989057,131.08,131.06,0.0498443]
[1744728822216,7.66939057,131.08,131.06,0.0498443]
[1744728822522,0.03989057,131.08,131.06,0.0498443]
[1744728823417,7.6301,131.07,131.06,0.0498443]
[1744728824219,2.53669057,131.08,131.0,551.7534]
[1744728824415,2.4968,131.08,131.02,7.6328]
[1744728824616,2.4968,131.08,131.0,551.7534]
[1744728824915,32.01583395,131.09,131.02,7.6326]
[1744728825225,7.6315,131.05,131.04,0.0583867]
[1744728826525,7.6312,131.06,131.04,0.0583867]
[1744728826721,0.05753882,131.07,131.04,0.0583867]
[1744728827019,7.6312,131.05,131.04,0.0583867]
[1744728827222,29.66567277,131.07,130.99,45.2111]
[1744728827422,29.60813395,131.07,130.99,45.2111]
[1744728827622,7.6327,131.03,131.0,7.6339]
[1744728827822,29.60813395,131.05,130.95,45.0979]
[1744728828021,29.60813395,131.03,130.95,45.0979]
[1744728828218,29.60813395,130.99,130.98,0.04994702]
[1744728828419,29.60813395,130.99,130.9,45.4979]
[1744728828621,29.60813395,130.99,130.94,7.6373]
[1744728828827,29.60813395,130.99,130.9,45.4979]
[1744728829126,2.2871,130.98,130.9,45.4979]
[1744728829321,0.05442933,130.95,130.93,0.05411703]
[1744728830023,7.6376,130.94,130.93,0.05411703]
[1744728830829,7.69172933,130.95,130.93,0.05411703]
[1744728831227,0.05442933,130.95,130.93,0.05411703]
[1744728831625,0.05442933,130.95,130.93,7.69201703]
[1744728832026,0.05442933,130.95,130.94,7.6376]
[1744728833836,4.8468,131.02,130.96,7.6363]
[1744728834134,4.8468,131.02,130.9,72.68813395]
[1744728834435,7.6369,130.96,130.9,72.68813395]
[1744728834631,7.6369,130.96,130.9,43.08]
[1744728834933,0.049518,130.94,130.92,7.69478364]
[1744728835136,0.05082299,130.94,130.92,7.69364039]
[1744728835437,0.05082299,130.94,130.93,7.6382]
[1744728835627,0.05082299,130.94,130.92,0.05514039]
[1744728836330,0.05082299,130.94,130.92,7.69364039]
[1744728836536,0.05082299,130.94,130.92,0.05514039]
[1744728836833,7.68852299,130.94,130.92,0.05514039]
[1744728837029,0.05082299,130.94,130.92,0.05514039]
[1744728837633,7.6382,130.93,130.92,0.05514039]
[1744728838227,7.6394,130.91,130.9,0.4]
[1744728838933,4.31312299,130.94,130.9,0.4]
[1744728839128,0.05082299,130.94,130.9,0.4]
[1744728839332,0.05082299,130.94,130.91,0.05368366]
[1744728839936,7.6386,130.93,130.91,0.05368366]
[1744728840738,0.05082299,130.94,130.91,0.05368366]
[1744728840739,7.6388,130.92,130.91,0.05368366]
[1744728841135,72.21895694,130.94,130.91,0.05368366]
[1744728841537,42.61082299,130.94,130.91,0.05368366]
[1744728841738,0.05082299,130.94,130.91,0.05368366]
[1744728841938,7.6388,130.92,130.91,0.05368366]
[1744728842145,0.05082299,130.94,130.91,7.69308366]
[1744728842438,0.05082299,130.94,130.91,0.05368366]
[1744728842741,7.68872299,130.94,130.91,7.69278366]
[1744728843038,0.05082299,130.94,130.91,7.69278366]
[1744728843535,7.68882299,130.94,130.91,7.69278366]
[1744728843737,0.05082299,130.94,130.92,7.6387]
[1744728844043,7.68862299,130.94,130.91,0.05368366]
[1744728844242,0.05082299,130.94,130.92,7.6385]
[1744728844539,7.6386,130.93,130.91,0.05368366]
[1744728844942,29.65895694,130.94,130.91,0.05368366]
[1744728845141,7.6386,130.93,130.91,0.05368366]
[1744728845542,29.65895694,130.94,130.91,0.05368366]
[1744728845844,7.6388,130.92,130.91,0.05368366]
[1744728846236,29.60813395,130.92,130.9,0.4]
[1744728846440,7.6394,130.91,130.9,0.4]
[1744728847045,44.64452299,130.94,130.9,0.4]
[1744728847345,0.05082299,130.94,130.91,0.0581844]
[1744728848242,0.05082299,130.94,130.93,7.6382]
[1744728848436,0.05082299,130.94,130.91,42.6181844]
[1744728848741,0.05082299,130.94,130.93,7.6382]
[1744728848938,33.90273395,131.0,130.91,48.9900844]
[1744728849139,7.6352,130.99,130.91,48.9319]
[1744728849640,7.6352,130.99,130.92,29.60813395]
[1744728849843,0.05308,130.97,130.95,7.6367]
[1744728850043,0.05740411,130.97,130.95,7.68746579]
[1744728850344,0.05740411,130.97,130.95,0.05076579]
[1744728850935,0.05740411,130.97,130.96,7.6365]
[1744728852842,0.05740411,130.97,130.95,7.68766579]
[1744728853038,0.05740411,130.97,130.95,0.05076579]
[1744728853242,7.6365,130.96,130.95,0.05076579]
[1744728854248,0.05740411,130.97,130.95,0.05076579]
[1744728854647,7.6365,130.96,130.95,0.05076579]
[1744728854851,29.60813395,130.96,130.9,0.4]
[1744728855249,72.16813395,130.98,130.9,0.4]
[1744728855448,72.16813395,131.02,130.91,29.60813395]
[1744728855648,42.56,131.02,130.92,42.56]
[1744728855852,0.05360764,130.98,130.96,0.05366932]
[1744728856053,6.2463,131.04,130.96,42.61366932]
[1744728856349,33.83763395,131.04,130.98,7.6353]
[1744728856548,33.83763395,131.04,130.96,42.56]
[1744728856742,33.83763395,131.04,130.98,7.6351]
[1744728857142,0.05546798,131.02,131.0,0.05817479]
[1744728857939,7.6336,131.01,131.0,0.05817479]
[1744728859353,7.68876798,131.02,131.0,0.05817479]
[1744728859750,0.05546798,131.02,131.0,0.05817479]
[1744728859953,0.05546798,131.02,131.0,7.69187479]
[1744728860853,0.05546798,131.02,131.01,7.6336]
[1744728861056,0.05546798,131.02,131.0,0.05817479]
[1744728861852,7.68876798,131.02,131.0,0.05817479]
[1744728862151,0.05546798,131.02,131.0,0.05817479]
[1744728862353,0.05546798,131.02,131.0,7.69207479]
[1744728863355,7.68856798,131.02,131.0,7.69207479]
[1744728863954,7.68856798,131.02,131.0,0.05817479]
[1744728864151,7.6336,131.01,131.0,0.05817479]
[1744728864346,29.66360193,131.02,130.93,6.1144]
[1744728864554,7.6352,130.99,130.93,6.1144]
[1744728864756,29.60813395,131.0,130.93,6.1144]
[1744728864956,2.1287,131.03,130.93,6.1144]
[1744728865155,29.60813395,131.02,130.93,6.1144]
[1744728865456,0.05014842,130.99,130.96,0.05439069]
[1744728865650,0.05014842,130.99,130.96,7.69069069]
[1744728865853,0.05014842,130.99,130.96,0.05439069]
[1744728866055,0.05014842,130.99,130.97,7.6354]
[1744728866653,0.05014842,130.99,130.98,7.6353]
[1744728867758,3.16012461,131.04,131.0,7.6341]
[1744728868061,3.16012461,131.04,130.96,42.38]
[1744728868358,7.6333,131.02,130.99,7.6347]
[1744728868657,0.05554339,131.02,131.0,7.634]
[1744728868858,0.05554339,131.02,130.99,0.04966835]
[1744728869861,7.68884339,131.02,131.0,7.634]
[1744728870061,0.05554339,131.02,130.99,0.04966835]
[1744728870962,0.05554339,131.02,131.01,7.6336]
[1744728871158,2.1425,131.08,131.0,42.38]
[1744728871353,3.16303349,131.07,131.0,46.6183]
[1744728872062,0.05753958,131.05,131.02,0.05171498]
[1744728872564,0.05753958,131.05,131.02,7.68431498]
[1744728873157,26.12568346,131.03,131.02,0.05171498]
[1744728873666,26.12568346,131.03,130.96,42.38]
[1744728873667,18.49328346,131.03,130.96,42.38]
[1744728873862,42.38,131.04,130.96,60.87328346]
[1744728874264,18.49328346,131.07,130.98,18.49328346]
[1744728874463,0.05550183,131.04,131.01,0.04845675]
[1744728874863,7.6324,131.03,131.01,0.04845675]
[1744728875265,0.05550183,131.04,131.01,0.04845675]
[1744728875863,7.6327,131.03,131.01,0.04845675]
[1744728876065,0.05550183,131.04,131.01,0.04845675]
[1744728876564,7.633,131.02,131.01,0.04845675]
[1744728878667,7.6344,131.0,130.96,42.38]
[1744728878863,29.57811463,131.03,130.96,50.0164]
[1744728879061,29.57811463,131.01,130.94,2.1858]
[1744728879261,7.6357,130.98,130.94,2.1858]
[1744728879466,33.79261463,131.04,130.94,2.1858]
[1744728879663,0.04984567,131.0,130.98,0.05817193]
[1744728880761,7.6347,130.99,130.98,0.05817193]
[1744728881362,7.68424567,131.0,130.98,0.05817193]
[1744728881664,0.04984567,131.0,130.98,0.05817193]
[1744728882166,7.6347,130.99,130.98,0.05817193]
[1744728882967,7.6367,130.96,130.92,42.38]
[1744728883170,29.57811463,130.98,130.92,42.38]
[1744728883464,29.57811463,130.98,130.92,50.0186]
[1744728883662,7.6376,130.95,130.92,50.0186]
[1744728883863,7.69637636,130.95,130.92,50.07295157]
[1744728884270,7.69637636,130.95,130.93,7.6381]
[1744728884465,0.05877636,130.95,130.92,42.43435157]
[1744728885363,0.05877636,130.95,130.93,7.6379]
[1744728885568,0.05877636,130.95,130.92,42.43435157]
[1744728885769,0.05877636,130.95,130.94,7.6376]
[1744728886770,0.05877636,130.95,130.93,7.6381]
[1744728887471,7.69607636,130.95,130.93,7.6381]
[1744728888276,0.05877636,130.95,130.93,7.6381]
[1744728888468,0.05877636,130.95,130.94,7.6376]
[1744728888973,2.1107,131.04,130.94,37.21811463]
[1744728889174,3.17082257,131.03,130.94,29.57811463]
[1744728889375,10.80412257,131.02,130.94,29.57811463]
[1744728889568,7.6333,131.02,131.0,7.6341]
[1744728889867,7.69040144,131.02,131.0,7.68459829]
[1744728890065,7.69040144,131.02,131.0,0.05049829]
[1744728890978,0.05710144,131.02,131.0,7.68439829]
[1744728891569,7.69040144,131.02,131.0,0.05049829]
[1744728892177,0.05710144,131.02,131.0,0.05049829]
[1744728892674,7.69050144,131.02,131.0,0.05049829]
[1744728893782,7.6336,131.01,131.0,0.05049829]
[1744728893979,3.18032607,131.01,130.96,42.22]
[1744728894180,0.05710144,131.02,130.96,42.22]
[1744728894383,3.18062153,131.01,130.97,7.6355]
[1744728894576,3.18062153,131.0,130.96,42.22]
[1744728894878,0.04953204,130.99,130.98,7.6352]
[1744728895073,0.0481921,131.0,130.98,7.6352]
[1744728895678,0.0481921,131.0,130.99,7.6347]
[1744728896580,0.0481921,131.0,130.98,7.6351]
[1744728897183,0.0481921,131.0,130.99,7.6347]
[1744728897377,7.6823921,131.0,130.97,6.46755316]
[1744728897579,7.6823921,131.0,130.97,4.32485316]
[1744728897774,7.6823921,131.0,130.98,7.635]
[1744728898980,0.0481921,131.0,130.99,7.6347]
[1744728900277,18.49422725,131.05,130.97,4.32485316]
[1744728900486,18.49422725,131.07,130.98,18.49422725]
[1744728900683,3.18286732,131.06,130.98,18.49422725]
[1744728900981,21.67709457,131.05,130.97,4.2717]
[1744728901179,3.18180097,131.04,131.0,0.05119932]
[1744728901483,0.04864496,131.02,131.0,7.68519932]
[1744728901683,0.04864496,131.02,131.0,0.05119932]
[1744728902783,10.81579779,131.01,131.0,0.05119932]
[1744728904481,10.81304771,131.01,131.0,0.05119932]
[1744728904683,3.17944771,131.01,131.0,0.05119932]
[1744728904884,7.68194496,131.02,131.0,0.05119932]
[1744728905083,0.04864496,131.02,131.0,0.05119932]
[1744728905278,10.81169901,131.01,131.0,0.05119932]
[1744728905680,10.81150209,131.01,131.0,0.05119932]
[1744728905876,7.6336,131.01,131.0,0.05119932]
[1744728906582,10.81302277,131.01,131.0,0.05119932]
[1744728907174,10.81095602,131.01,131.0,0.05119932]
[1744728907378,7.68194496,131.02,131.0,0.05119932]
[1744728907677,0.04864496,131.02,131.0,0.05119932]
[1744728907875,3.17693697,131.03,131.0,0.05119932]
[1744728908080,18.49422725,131.07,131.0,42.27119932]
[1744728908280,3.17826252,131.06,131.0,42.27119932]
[1744728908582,7.6315,131.05,131.0,42.27119932]
[1744728908886,0.05245376,131.04,131.02,7.6325]
[1744728909088,0.05245376,131.04,131.0,42.27119932]
[1744728909287,0.05245376,131.04,131.03,7.6324]
[1744728912089,18.49422725,131.11,131.02,18.49422725]
[1744728912285,3.17483454,131.1,131.04,18.49422725]
[1744728912588,18.49422725,131.13,131.1,7.6283]
[1744728912784,3.17422665,131.12,131.1,7.6283]
[1744728912986,7.6269,131.13,131.1,7.6283]
[1744728913189,7.68280403,131.13,131.1,7.68313578]
[1744728913588,7.6272,131.12,131.1,0.05483578]
[1744728914082,0.05590403,131.13,131.1,0.05483578]
[1744728914686,18.55013128,131.13,131.1,0.05483578]
[1744728915193,7.6277,131.11,131.1,0.05483578]
[1744728915386,18.55013128,131.13,131.1,0.05483578]
[1744728915688,26.12192725,131.11,131.1,0.05483578]
[1744728916483,21.65722793,131.11,131.05,42.2]
[1744728916687,18.49422725,131.09,131.05,42.2]
[1744728917187,29.56696198,131.09,131.01,2.1625]
[1744728917392,0.04883717,131.07,131.05,0.05469078]
[1744728917692,7.67923717,131.07,131.05,0.05469078]
[1744728917889,29.61579915,131.07,131.05,0.05469078]
[1744728918291,29.61579915,131.07,131.01,44.3625]
[1744728918292,7.6324,131.03,131.01,42.2]
[1744728918492,7.6324,131.03,131.0,7.6339]
[1744728918692,29.56696198,131.05,130.99,9.7203]
[1744728919091,29.56696198,131.03,130.97,44.163]
[1744728919296,0.05857606,131.01,130.99,0.05552351]
[1744728920095,0.05857606,131.01,131.0,7.6341]
[1744728921097,29.56696198,131.07,131.0,7.6341]
[1744728921799,7.6326,131.03,131.0,7.6341]
[1744728922100,7.68899757,131.03,131.0,7.68644867]
[1744728922300,0.05639757,131.03,131.0,0.05234867]
[1744728923100,0.05639757,131.03,131.0,7.68644867]
[1744728923600,0.05639757,131.03,131.0,0.05234867]
[1744728924201,29.62335955,131.03,131.0,0.05234867]
[1744728924593,0.05639757,131.03,131.0,0.05234867]
[1744728925796,0.05639757,131.03,131.0,7.68614867]
[1744728926302,7.68909757,131.03,131.01,7.6335]
[1744728926503,0.05639757,131.03,131.01,7.6335]
[1744728927003,0.05639757,131.03,131.0,7.68624867]
[1744728927504,7.68939757,131.03,131.0,7.68624867]
[1744728927704,0.05639757,131.03,131.0,0.05234867]
[1744728928105,7.6335,131.02,131.0,0.05234867]
[1744728928408,0.05639757,131.03,131.0,0.05234867]
[1744728928707,7.6331,131.02,131.0,0.05234867]
[1744728929108,0.05639757,131.03,131.0,0.05234867]
[1744728929309,7.68929757,131.03,131.0,7.68604867]
[1744728930507,7.6331,131.02,131.0,0.05234867]
[1744728931097,7.68909757,131.03,131.0,7.68634867]
[1744728931308,0.05639757,131.03,131.0,7.68634867]
[1744728931709,0.05639757,131.03,131.0,0.05234867]
[1744728932305,0.05639757,131.03,131.02,7.633]
[1744728932504,0.05639757,131.03,131.0,0.05234867]
[1744728932904,0.05639757,131.03,131.01,7.6333]
[1744728933100,0.05639757,131.03,131.0,0.05234867]
[1744728933309,7.68909757,131.03,131.0,7.68624867]
[1744728934011,7.6332,131.02,131.0,0.05234867]
[1744728934411,29.62335955,131.03,131.0,0.05234867]
[1744728934611,7.6336,131.01,131.0,0.05234867]
[1744728934913,29.62335955,131.03,131.0,0.05234867]
[1744728935916,7.6336,131.01,131.0,0.05234867]
[1744728936215,32.73391632,131.01,130.93,44.0975]
[1744728936409,29.56696198,130.98,130.93,44.0975]
[1744728936611,29.56696198,131.0,130.93,44.0975]
[1744728937010,7.68539298,130.98,130.95,7.69453452]
[1744728937411,0.04979298,130.98,130.95,0.05793452]
[1744728938110,0.04979298,130.98,130.97,7.6359]
[1744728939110,18.50361911,131.03,131.0,7.6337]
[1744728939317,26.13631911,131.03,131.0,7.6337]
[1744728939814,26.13511911,131.05,130.97,42.04]
[1744728940114,7.6315,131.05,130.98,18.50361911]
[1744728940305,0.05291932,131.02,131.0,0.04931106]
[1744728940507,20.65301911,131.09,131.01,42.04]
[1744728940706,16.58217103,131.13,131.02,18.50361911]
[1744728940707,18.50361911,131.11,131.02,18.50361911]
[1744728940911,3.17262205,131.1,131.02,18.50361911]
[1744728941213,10.80122205,131.1,131.07,7.6298]
[1744728941408,18.50361911,131.11,131.04,18.50361911]
[1744728941716,0.05154616,131.09,131.06,0.05792253]
[1744728942016,0.05154616,131.09,131.08,7.6295]
[1744728942917,3.17083247,131.14,131.11,7.6273]
[1744728943310,33.71159823,131.16,131.09,7.6286]
[1744728943517,3.17051522,131.15,131.09,7.6286]
[1744728943718,3.17051522,131.15,131.05,73.72309823]
[1744728944012,0.05791903,131.13,131.11,0.05217282]
[1744728946219,7.6272,131.12,131.11,0.05217282]
[1744728946414,0.05791903,131.13,131.11,0.05217282]
[1744728946714,7.68471903,131.13,131.11,0.05217282]
[1744728947419,0.05791903,131.13,131.11,0.05217282]
[1744728949121,0.05791903,131.13,131.12,7.6272]
[1744728950822,0.05791903,131.13,131.11,7.67967282]
[1744728951218,0.05791903,131.13,131.11,0.05217282]
[1744728951418,0.05791903,131.13,131.12,7.6272]
[1744728951819,42.02,131.18,131.11,0.05217282]
[1744728952125,7.6239,131.18,131.11,0.05217282]
[1744728952321,33.66569823,131.2,131.11,0.05217282]
[1744728952322,29.53509823,131.2,131.11,0.05217282]
[1744728952520,7.6249,131.16,131.13,7.6263]
[1744728952925,0.0431779,131.16,131.13,0.05246581]
[1744728953525,7.6258,131.15,131.13,0.05246581]
[1744728953727,29.57827613,131.16,131.13,0.05246581]
[1744728953926,7.6259,131.15,131.13,0.05246581]
[1744728955024,0.0431779,131.16,131.13,0.05246581]
[1744728955624,29.57827613,131.16,131.13,0.05246581]
[1744728955931,0.0431779,131.16,131.13,0.05246581]
[1744728956231,7.6258,131.15,131.13,0.05246581]
[1744728956529,0.0431779,131.16,131.13,0.05246581]
[1744728957821,0.0431779,131.16,131.13,41.85246581]
[1744728958026,0.0431779,131.16,131.14,4.1164]
[1744728958226,7.6234,131.19,131.16,7.6247]
[1744728958727,7.6216,131.22,131.19,7.6228]
[1744728958928,29.53509823,131.25,131.14,4.1164]
[1744728959233,29.53509823,131.25,131.18,0.05221481]
[1744728959836,7.6217,131.22,131.19,7.623]
[1744728960136,7.6217,131.22,131.18,0.05221481]
[1744728960431,7.6211,131.23,131.18,0.05221481]
[1744728960931,29.53509823,131.26,131.2,7.6223]
[1744728961130,29.53509823,131.26,131.22,0.04820537]
[1744728961537,7.6208,131.23,131.22,0.04820537]
[1744728962333,29.53509823,131.24,131.17,41.8]
[1744728962741,7.6216,131.22,131.19,7.6228]
[1744728962939,29.53509823,131.24,131.17,41.8]
[1744728963139,29.53509823,131.26,131.17,41.8]
[1744728963442,0.04820537,131.23,131.2,0.05624128]
[1744728963840,0.04820537,131.23,131.21,7.6216]
[1744728964240,0.04820537,131.23,131.2,0.05624128]
[1744728964443,7.66900537,131.23,131.21,7.6219]
[1744728964745,0.04820537,131.23,131.2,0.05624128]
[1744728964939,7.6213,131.22,131.2,0.05624128]
[1744728965142,18.48388548,131.23,131.2,0.05624128]
[1744728965332,18.43568011,131.21,131.2,0.05624128]
[1744728965533,26.05758011,131.21,131.2,0.05624128]
[1744728965733,18.43568011,131.21,131.17,41.8]
[1744728965933,18.43568011,131.19,131.17,41.8]
[1744728966137,18.43568011,131.19,131.17,49.4238]
[1744728966644,18.43568011,131.19,131.17,41.8]
[1744728966943,26.11756697,131.19,131.17,41.85654635]
[1744728967143,0.05878686,131.19,131.17,41.85654635]
[1744728967940,0.05878686,131.19,131.17,0.05654635]
[1744728968145,18.49446697,131.19,131.17,0.05654635]
[1744728968745,26.11786697,131.19,131.17,0.05654635]
[1744728970246,7.6237,131.18,131.17,0.05654635]
[1744728970941,18.49446697,131.19,131.13,41.8]
[1744728971133,18.43568011,131.17,131.13,41.8]
[1744728971335,18.43568011,131.18,131.14,7.626]
[1744728971536,18.43568011,131.18,131.13,41.8]
[1744728971938,0.0524439,131.17,131.14,0.05069987]
[1744728972144,7.6249,131.16,131.14,0.05069987]
[1744728972849,7.6254,131.15,131.14,0.05069987]
[1744728974341,0.0524439,131.17,131.14,0.05069987]
[1744728975346,0.0524439,131.17,131.16,7.6248]
[1744728976648,0.0524439,131.17,131.15,7.6252]
[1744728976844,18.43568011,131.16,131.14,0.05069987]
[1744728977447,7.6254,131.15,131.14,0.05069987]
[1744728977952,26.06108011,131.15,131.14,0.05069987]
[1744728979253,7.6254,131.15,131.14,0.05069987]
[1744728981853,29.53597166,131.16,131.06,359.0]
[1744728981854,31.64057166,131.16,131.06,41.6]
[1744728982051,29.53597166,131.15,131.06,41.6]
[1744728982254,7.6266,131.13,131.06,41.6]
[1744728982553,29.53597166,131.14,131.06,41.6]
[1744728982753,7.68574991,131.11,131.09,0.05033501]
[1744728983454,0.05764991,131.11,131.09,0.05033501]
[1744728983650,0.05764991,131.11,131.1,7.6283]
[1744728983851,0.05764991,131.11,131.1,49.2283]
[1744728984051,0.05764991,131.11,131.09,0.05033501]
[1744728984748,7.68564991,131.11,131.09,0.05033501]
[1744728984952,0.05764991,131.11,131.09,0.05033501]
[1744728985150,0.05764991,131.11,131.1,7.6283]
[1744728992051,0.05764991,131.11,131.09,7.67893501]
[1744728992257,0.05764991,131.11,131.09,0.05033501]
[1744728992458,0.05764991,131.11,131.1,7.6283]
[1744728993158,0.05764991,131.11,131.09,7.67893501]
[1744728993359,0.05764991,131.11,131.09,0.05033501]
[1744728994359,29.53597166,131.1,131.04,2.0249]
[1744728994659,7.6297,131.08,131.05,7.631]
[1744728995262,0.05465607,131.08,131.06,7.6306]
[1744728997966,7.68415607,131.08,131.06,7.6306]
[1744728998167,7.68415607,131.08,131.05,7.68635289]
[1744728998468,0.05465607,131.08,131.05,0.05545289]
[1744728998863,7.68455607,131.08,131.05,7.68665289]
[1744728999363,0.05465607,131.08,131.05,0.05545289]
[1744728999667,2.0011,131.14,131.06,41.62]
[1744728999964,10.78844989,131.13,131.1,7.6283]
[1744729000163,7.6269,131.13,131.1,7.6283]
[1744729000566,6.1281,131.18,131.07,6.1513]
[1744729000567,35.66407166,131.18,131.07,6.1513]
[1744729000761,0.05508479,131.14,131.11,0.05377545]
[1744729001661,18.45323764,131.19,131.11,0.05377545]
[1744729001866,7.6243,131.17,131.14,7.6257]
[1744729002064,18.45323764,131.17,131.1,41.62]
[1744729002263,7.6266,131.13,131.1,49.2481]
[1744729002462,0.05100081,131.13,131.1,41.6763583]
[1744729002768,0.05100081,131.13,131.11,7.6277]
[1744729003469,0.05100081,131.13,131.1,41.6763583]
[1744729003470,0.05100081,131.13,131.1,49.3044583]
[1744729003665,0.05100081,131.13,131.1,41.6763583]
[1744729004160,18.50423845,131.13,131.1,0.0563583]
[1744729004366,18.45323764,131.11,131.1,0.0563583]
[1744729004565,26.08093764,131.11,131.1,0.0563583]
[1744729004767,18.45323764,131.11,131.06,41.62]
[1744729004967,18.45323764,131.09,131.03,6.1974]
[1744729005168,29.56340739,131.1,131.03,6.1974]
[1744729005369,7.6299,131.08,131.05,7.631]
[1744729005970,0.04874568,131.08,131.05,7.68489439]
[1744729006569,7.67824568,131.08,131.05,7.68489439]
[1744729006869,0.04874568,131.08,131.05,0.05409439]
[1744729007572,7.67844568,131.08,131.05,7.68529439]
[1744729008474,7.6301,131.07,131.05,0.05409439]
[1744729008674,29.61215307,131.08,131.05,0.05409439]
[1744729009073,7.6307,131.06,131.05,0.05409439]
[1744729010678,37.19410739,131.06,131.05,0.05409439]